[Event "44th Chess Olympiad Women 2022"]
[Site "Chennai"]
[Date "2022.08.03"]
[Round "6.5"]
[White "Navrotescu, Andreea"]
[Black "Lanchava, Tea"]
[Result "0-1"]
[WhiteElo "2373"]
[BlackElo "2257"]
[Annotator "TA"]
[PlyCount "138"]
[EventDate "2022.??.??"]
[TimeControl "60"]

{[%evp 12,138,79,67,90,69,119,120,162,106,121,77,62,77,77,68,79,72,106,40,206,
195,202,180,200,224,426,358,430,366,360,360,306,357,356,355,420,431,453,439,
432,398,411,258,219,158,145,0,0,0,0,-34,-23,-33,-72,-70,-82,-85,0,-257,-255,
-243,-233,-521,-512,-549,-301,-430,-437,-366,-329,-432,-429,-798,-781,-800,
-784,-788,-767,-886,-847,-1176,-988,-12839,-12839,-12835,-1435,-986,0,-688,
-662,-726,-629,-622,-661,-660,-609,-672,-597,-720,-562,-713,-703,-888,-658,
-606,-591,-546,-549,-12840,-12841,-12841,-12841,-12842,-12843,-12843,-12843,
-12844,-12845,-12845,-12845,-12846,-12846,-12846,-12846,-12846,-12847,-12847,
-12847]} 1. c4 {[%emt 0:00:03]} g6 {[%emt 0:00:19]} 2. d4 {[%emt 0:00:11][%cal
Yd2d4,Yd4d5]} Bg7 {[%emt 0:00:17]} 3. e4 {[%emt 0:00:09]} d6 {[%emt 0:00:00]}
4. Nc3 {[%emt 0:00:29]} Nd7 {[%emt 0:00:15]} 5. Nf3 {[%emt 0:01:04]} c6 {
[%emt 0:03:10]} 6. Be2 {[%emt 0:00:55]} e5 {[%emt 0:00:34]} 7. d5 {[%emt 0:00:
00]} c5 {[%emt 0:00:12] A42: Modern Defence: Averbakh Variation.} 8. g4 {
[%emt 0:06:04]} f6 {[%emt 0:07:23]} (8... h6 $14) 9. h4 $16 {[%emt 0:02:16]}
Nh6 {[%emt 0:18:34] [#] White is better.} 10. g5 $146 {[%emt 0:23:19]} (10. h5
$18) ({Predecessor:} 10. Nd2 Nf7 11. Nf1 a6 12. Ng3 Rb8 13. a3 Bh6 14. Be3 Bxe3
15. fxe3 O-O 16. Kd2 {½-½ (60) Tosic,M (2465)-Varlamov,V (2305) St
Petersburg 1993}) 10... Nf7 {[%emt 0:02:13]} 11. gxf6 {[%emt 0:05:36]} Nxf6 {
[%emt 0:01:36]} 12. Ng5 {[%emt 0:00:12] Hoping for Ne6.} Qe7 {[%emt 0:04:26]
Prevents Ne6.} 13. Be3 {[%emt 0:15:23]} Bd7 {[%emt 0:08:30]} 14. Rg1 {[%emt 0:
00:00]} a6 {[%emt 0:11:25]} 15. h5 {[%emt 0:01:21]} (15. Na4 $16) 15... Bf8 $2
{[%emt 0:06:57]} (15... Nxg5 $14 16. Bxg5 h6 17. Bxf6 Bxf6) 16. Qb3 $1 $18 {
[%emt 0:08:47]} (16. Ne6 $6 Bxe6 17. dxe6 Qxe6 $16) 16... Rb8 {[%emt 0:05:53]}
17. O-O-O {[%emt 0:03:01][%cal Yg5e6]} gxh5 {[%emt 0:08:45] [#]} 18. Ne6 $1 {
[%emt 0:00:15]} Ng4 $2 {[%emt 0:09:42]} (18... b6 19. Rh1 Bxe6 20. dxe6 Qxe6
21. Bxh5 Be7 22. Qa4+ Kf8 23. Qxa6 Rg8) 19. Nc7+ {[%emt 0:00:51]} Kd8 {[%emt 0:
00:00]} 20. Nxa6 {[%emt 0:00:35] Pin} Kc8 {[%emt 0:01:10]} 21. Nxb8 {[%emt 0:
01:43]} Kxb8 {[%emt 0:00:02]} 22. Bxg4 {[%emt 0:00:32]} hxg4 {[%emt 0:00:00]}
23. Nb5 {[%emt 0:00:51]} h5 {[%emt 0:00:53]} 24. Qa4 {[%emt 0:00:12] White
wants to mate with Qa7+.} Bxb5 {[%emt 0:00:49]} 25. cxb5 {[%emt 0:00:02]} ({
Less strong is} 25. Qxb5 Bh6 $16) 25... Qc7 {[%emt 0:05:17]} 26. Rd3 {[%emt 0:
04:20]} Qb6 {[%emt 0:00:20]} 27. Qc4 {[%emt 0:05:42]} Be7 {[%emt 0:00:00]} 28.
a4 {[%emt 0:03:49]} Bg5 {[%emt 0:00:40]} 29. Kc2 {[%emt 0:00:49]} (29. f3 $1
$16) 29... Bxe3 $1 $11 {[%emt 0:00:16]} 30. Rxe3 {[%emt 0:00:02] And now f3
would win.} Ng5 {[%emt 0:00:13] Prevents f3.} 31. a5 {[%emt 0:02:23]} Qxa5 {
[%emt 0:00:12]} 32. Ra3 {[%emt 0:00:02]} Qb4 {[%emt 0:00:35]} 33. Qxb4 {
[%emt 0:01:52]} cxb4 $17 {[%emt 0:00:05] Endgame KRR-KRN} 34. Ra4 {[%emt 0:01:
00] aiming for b6.} Kc7 {[%emt 0:00:45]} (34... Nxe4 $17 {White must now
prevent ...Rc8+.} 35. Rga1 Rc8+ 36. Kd1 Nxf2+ 37. Ke1 Nd3+ 38. Kd2 Nc5 39. Ra8+
Kc7 40. b6+ Kxb6 41. Rxc8 Nb3+ 42. Kd3 Nxa1) 35. Rxb4 $2 {[%emt 0:00:00] [#]} (
35. b6+ $1 $11 {and White has nothing to worry.} Kxb6 36. Rxb4+ Kc5 37. Kb3 (
37. Rxb7 Nxe4 38. Rd1 Nxf2 $11)) 35... Kb6 $1 $19 {[%emt 0:00:00]} 36. Kd3 {
[%emt 0:01:13]} Rf8 {[%emt 0:00:11]} 37. Rc4 $2 {[%emt 0:00:00]} (37. Ke2)
37... Rxf2 {[%emt 0:00:24]} 38. Rc8 {[%emt 0:00:07]} Rf3+ {[%emt 0:00:43]} 39.
Ke2 {[%emt 0:00:35]} (39. Kc2 $142) 39... Nxe4 {[%emt 0:00:00]} 40. Rh8 {
[%emt 0:01:16]} Rb3 {[%emt 0:00:15]} ({But not} 40... Kxb5 $2 41. Rc1 $19) 41.
Rd1 {[%emt 0:04:36]} Kxb5 {[%emt 0:08:05]} 42. Rd3 {[%emt 0:02:28]} (42. Rc1
$142 Rxb2+ 43. Ke3) 42... Rxb2+ {[%emt 0:00:00]} 43. Ke3 {[%emt 0:00:00]} Ng3 {
[%emt 0:00:56][%csl Gg3][%cal Rb2e2]} 44. Rd1 {[%emt 0:00:37]} h4 {[%emt 0:02:
41]} 45. Rg8 {[%emt 0:01:59]} Rb4 {[%emt 0:00:23] Strongly threatening ...Re4+.
} 46. Kf2 {[%emt 0:01:07]} Nf5 {[%emt 0:03:00] Threatens to win with ...Rb2+.}
47. Rg5 {[%emt 0:01:00]} Rb2+ {[%emt 0:01:31]} 48. Kg1 {[%emt 0:00:11]} Ne3 {
[%emt 0:01:39]} (48... Nd4 $142 49. Rg7 Kc5 50. Rc7+ Kxd5) 49. Re1 {[%emt 0:03:
14]} Rg2+ {[%emt 0:00:22]} 50. Kh1 {[%emt 0:00:01]} Rg3 {[%emt 0:00:09] Black
is clearly winning.} 51. Rg7 {[%emt 0:02:57]} b6 {[%emt 0:00:00]} 52. Rc7 {
[%emt 0:00:11]} Nxd5 {[%emt 0:00:37]} 53. Rb1+ {[%emt 0:00:04]} Nb4 {[%emt 0:
00:44]} 54. Rh7 {[%emt 0:00:47]} h3 {[%emt 0:00:56] ...e4 is the strong threat.
} 55. Kh2 {[%emt 0:01:01]} Rg2+ {[%emt 0:01:04]} 56. Kh1 {[%emt 0:00:01]} Rd2 {
[%emt 0:00:37]} 57. Rg7 {[%emt 0:01:04]} Rd4 {[%emt 0:00:00]} 58. Kh2 {[%emt 0:
00:04]} Kc4 {[%emt 0:02:44]} 59. Kg3 {[%emt 0:00:11]} b5 {[%emt 0:00:35][%cal
Yb6b5,Yb5b4,Yb4b3,Yb3b2]} 60. Rxg4 {[%emt 0:00:00]} Rxg4+ {[%emt 0:00:08]} 61.
Kxg4 {[%emt 0:00:11] KR-KN} Nd3 {[%emt 0:00:14]} 62. Kxh3 {[%emt 0:00:19]} b4 {
[%emt 0:00:10]} 63. Kg3 {[%emt 0:03:09]} e4 {[%emt 0:00:44]} 64. Kg2 {[%emt 0:
01:08]} b3 {[%emt 0:00:17]} 65. Kf1 {[%emt 0:00:00]} Kc3 {[%emt 0:00:09]} 66.
Ke2 {[%emt 0:00:06]} Kc2 {[%emt 0:00:14]} 67. Rd1 {[%emt 0:00:05]} b2 {[%emt 0:
00:37]} 68. Rd2+ {[%emt 0:00:04]} Kc3 {[%emt 0:00:05]} 69. Rd1 {[%emt 0:00:12]}
Nc1+ {[%emt 0:00:06] What a bad dream for White. Weighted Error Value: White=0.
74/Black=0.32} 0-1

[Event "44th Chess Olympiad Women 2022"]
[Site "Chennai"]
[Date "2022.08.03"]
[Round "6.5"]
[White "Ratsma, Rosa"]
[Black "Savina, Anastasia"]
[Result "1-0"]
[WhiteElo "2226"]
[BlackElo "2377"]
[Annotator "TA"]
[PlyCount "61"]
[EventDate "2022.??.??"]
[TimeControl "60"]

{[%evp 9,61,11,41,28,54,46,46,7,42,47,103,108,142,148,147,157,172,0,0,0,29,0,0,
-15,69,42,215,225,247,250,285,289,391,326,358,362,477,466,450,445,493,492,478,
439,452,448,438,425,1053,1095,1287,1220,12839,12833]} 1. e4 {[%emt 0:00:04]} d6
{[%emt 0:00:19]} 2. d4 {[%emt 0:00:22]} Nf6 {[%emt 0:00:06]} 3. Nc3 {[%emt 0:
00:00]} e5 {[%emt 0:00:11]} 4. Nf3 {[%emt 0:00:16]} Nbd7 {[%emt 0:00:17]} 5.
Rg1 {[%emt 0:00:49]} g6 {[%emt 0:11:39]} 6. Be3 {[%emt 0:00:32] C41: Philidor
Defence.} c6 {[%emt 0:06:53]} 7. g4 {[%emt 0:03:20]} Bg7 {[%emt 0:01:41]} 8.
dxe5 {[%emt 0:00:31] White is slightly better.} (8. g5 $5 {[%cal Rg5f6]} Nh5 9.
Qd2 $14) 8... dxe5 {[%emt 0:04:52]} 9. Qd2 {[%emt 0:01:16] [#]} h5 $146 {
[%emt 0:08:40]} (9... O-O $14) ({Predecessor:} 9... O-O 10. O-O-O Qe7 11. Nh4
Nb6 12. f3 Be6 13. Nf5 Bxf5 14. gxf5 Rfd8 15. Qf2 Nh5 {0-1 (37) Chen,R (2242)
-Schitco,I (2466) Richardson 2022}) 10. gxh5 $16 {[%emt 0:05:00]} Nxh5 {
[%emt 0:01:19] [#]} 11. Bc4 $1 {[%emt 0:06:32]} Qe7 {[%emt 0:08:52] [#]} 12.
Ng5 $1 {[%emt 0:14:22] 0x0.0024ac3ae416dp-1022s more active pieces.} O-O {
[%emt 0:04:31]} 13. Nxf7 $2 {[%emt 0:10:02]} (13. O-O-O $18) 13... Rxf7 $11 {
[%emt 0:06:30]} 14. Rxg6 {[%emt 0:00:48] Threatens to win with 0-0-0.} Nf8 {
[%emt 0:09:19]} 15. Bxf7+ {[%emt 0:15:12]} (15. Rg5 $5 {[%cal Rg5h5]}) 15...
Qxf7 {[%emt 0:00:10]} 16. Rg1 {[%emt 0:00:58]} Nf4 {[%emt 0:04:18]} (16... Kh7
$11) 17. O-O-O {[%emt 0:03:09]} b5 $2 {[%emt 0:02:12] A mistake that costs the
game.} (17... Be6 $14) 18. Qd6 $18 {[%emt 0:06:28][%csl Yc6,Ye5]} Be6 {[%emt 0:
15:09]} 19. Qxc6 {[%emt 0:04:45] The board is on fire.} Rc8 {[%emt 0:00:00]}
20. Qxb5 {[%emt 0:00:42]} Qc7 {[%emt 0:00:34]} 21. Rd2 {[%emt 0:06:39]} Bc4 {
[%emt 0:00:49]} 22. Qa4 {[%emt 0:02:31]} a6 {[%emt 0:00:45]} 23. Nd5 {[%emt 0:
02:53] White is clearly winning.} Bxd5 {[%emt 0:05:16]} 24. exd5 {[%emt 0:00:
18]} Qd6 {[%emt 0:00:10]} 25. h4 {[%emt 0:04:29]} Kh8 {[%emt 0:00:00]} 26. Qe4
{[%emt 0:02:29]} Nd7 {[%emt 0:00:40]} 27. Bxf4 {[%emt 0:03:36]} exf4 {[%emt 0:
00:04]} 28. Qe6 {[%emt 0:01:00]} Bxb2+ {[%emt 0:01:03]} (28... Qxe6 $142 29.
dxe6 Nf6) 29. Kxb2 {[%emt 0:01:18]} Rb8+ {[%emt 0:00:30]} 30. Ka1 {[%emt 0:00:
15]} Qf8 {[%emt 0:00:29]} 31. c3 {[%emt 0:02:16] Weighted Error Value: White=0.
16 (very precise) /Black=0.51} 1-0

[Event "44th Chess Olympiad Women 2022"]
[Site "Chennai"]
[Date "2022.08.03"]
[Round "6.5"]
[White "Roebers, Eline"]
[Black "Sebag, Marie"]
[Result "1-0"]
[WhiteElo "2344"]
[BlackElo "2447"]
[Annotator "RC"]
[PlyCount "95"]
[EventDate "2022.??.??"]
[TimeControl "60"]

1. e4 {[%emt 0:00:03]} c5 {[%emt 0:00:19]} 2. Nf3 {[%emt 0:00:05]} d6 {[%emt 0:
00:00]} 3. d4 {[%emt 0:00:07]} cxd4 {[%emt 0:00:07]} 4. Nxd4 {[%emt 0:00:28]}
Nf6 {[%emt 0:00:08]} 5. Nc3 {[%emt 0:00:14]} a6 {[%emt 0:00:08]} 6. f4 {
[%emt 0:01:47]} Qc7 {[%emt 0:16:32]} 7. f5 {[%emt 0:05:23]} b5 {[%emt 0:10:43]}
8. g4 {[%emt 0:11:36]} Bb7 {[%emt 0:16:09]} 9. Bg2 {[%emt 0:02:05]} b4 {
[%emt 0:00:51]} 10. Nd5 {[%emt 0:00:47]} Nxd5 {[%emt 0:00:10]} 11. exd5 {
[%emt 0:00:06]} Qc4 {[%emt 0:00:31]} 12. Nb3 {[%emt 0:20:16]} a5 {[%emt 0:00:
00]} 13. Rf1 {[%emt 0:00:57]} a4 {[%emt 0:21:45]} 14. Rf4 {[%emt 0:01:46]} Qb5
{[%emt 0:01:21]} 15. Nd4 {[%emt 0:03:38]} Qc5 {[%emt 0:00:11]} 16. Ne2 {
[%emt 0:01:23]} e5 {[%emt 0:04:48]} 17. fxe6 {[%emt 0:04:57]} fxe6 {[%emt 0:00:
00]} 18. a3 {[%emt 0:03:27]} bxa3 {[%emt 0:02:53]} 19. Rxa3 {[%emt 0:02:55]} e5
{[%emt 0:01:40]} 20. Rfxa4 {[%emt 0:07:28]} Rxa4 {[%emt 0:00:23]} 21. Rxa4 {
[%emt 0:00:05]} Be7 {[%emt 0:00:28]} 22. Qd3 {[%emt 0:01:49]} Bh4+ {[%emt 0:00:
00]} 23. Kd2 {[%emt 0:06:23]} Qf2 {[%emt 0:00:45]} 24. Qb5+ {[%emt 0:07:11]}
Nd7 {[%emt 0:00:07]} 25. Be4 {[%emt 0:00:57]} Bg5+ {[%emt 0:13:35]} 26. Kd3 {
[%emt 0:02:42]} Bxc1 {[%emt 0:00:09]} 27. Nxc1 {[%emt 0:00:25]} Ba6 {[%emt 0:
00:00]} 28. Rxa6 {[%emt 0:00:55]} Qd4+ {[%emt 0:00:21]} 29. Ke2 {[%emt 0:00:03]
} Qxe4+ {[%emt 0:00:25]} 30. Kd2 {[%emt 0:01:03]} Qf4+ {[%emt 0:04:21]} 31. Kc3
{[%emt 0:03:02]} O-O {[%emt 0:00:13]} 32. Ne2 {[%emt 0:01:40]} Qxg4 {[%emt 0:
00:00]} 33. Rxd6 {[%emt 0:02:13]} Nf6 {[%emt 0:00:58]} 34. Kb3 {[%emt 0:02:51]}
Ne4 {[%emt 0:00:13]} 35. Rb6 {[%emt 0:02:10]} Nd2+ {[%emt 0:01:18]} 36. Ka2 {
[%emt 0:01:02]} Qe4 {[%emt 0:00:21]} 37. Nc3 {[%emt 0:01:15]} Qxc2 {[%emt 0:00:
00]} 38. Rb8 {[%emt 0:01:41]} Rxb8 {[%emt 0:01:02]} 39. Qxb8+ {[%emt 0:00:06]}
Kf7 {[%emt 0:00:01]} 40. Qb7+ {[%emt 0:01:38]} Kf6 {[%emt 0:01:03]} 41. d6 {
[%emt 0:03:45]} Qd3 {[%emt 0:02:00]} 42. Qe7+ {[%emt 0:03:37]} Kg6 {[%emt 0:00:
00]} 43. Qe6+ {[%emt 0:01:11]} Kh5 {[%emt 0:00:50]} 44. d7 {[%emt 0:05:16]} g6
{[%emt 0:05:18]} 45. Qxe5+ {[%emt 0:01:43]} Kh6 {[%emt 0:00:04]} 46. Qe6 {
[%emt 0:00:27]} Nf3 {[%emt 0:05:42]} 47. Qd5 {[%emt 0:02:56]} Qa6+ {[%emt 0:00:
00]} 48. Kb1 {[%emt 0:00:13]} 1-0

[Event "44th Chess Olympiad Women 2022"]
[Site "Chennai"]
[Date "2022.08.03"]
[Round "6.6"]
[White "Efroimski, Marsel"]
[Black "Paehtz, Elisabeth"]
[Result "1/2-1/2"]
[WhiteElo "2456"]
[BlackElo "2484"]
[Annotator "TA"]
[PlyCount "82"]
[EventDate "2022.??.??"]
[TimeControl "60"]

{[%evp 15,82,13,10,8,14,0,5,5,4,0,29,18,31,38,72,53,79,0,34,15,58,69,72,71,95,
-83,-59,-94,-76,-69,-76,-256,-198,-163,0,0,42,70,57,32,20,22,74,63,63,60,63,56,
57,44,50,32,31,10,11,8,112,35,35,8,8,8,8,8,8,8,8,8,8]} 1. e4 {[%emt 0:00:01]}
c5 {[%emt 0:00:03]} 2. Nf3 {[%emt 0:00:04]} Nc6 {[%emt 0:00:02]} 3. Bb5 {
[%emt 0:00:30]} g6 {[%emt 0:00:13]} 4. O-O {[%emt 0:00:12]} Bg7 {[%emt 0:00:07]
} 5. c3 {[%emt 0:00:29]} Nf6 {[%emt 0:00:11]} 6. Re1 {[%emt 0:00:10]} O-O {
[%emt 0:00:11]} 7. d4 {[%emt 0:00:06]} d5 $1 {[%emt 0:00:07] is currently
scoring better than 7...cxd4.} 8. e5 {[%emt 0:00:05]} Ne4 {[%emt 0:00:00]} 9.
Be3 {[%emt 0:00:11] B31: Sicilian: 2...Nc6 3 Bb5 g6.} cxd4 {[%emt 0:00:00]} (
9... Qb6 {keeps more tension.} 10. Na3 cxd4 11. Nxd4 Nxe5 12. f3 a6) 10. cxd4 {
[%emt 0:00:18]} Qb6 {[%emt 0:00:03]} 11. Bxc6 {[%emt 0:00:16]} bxc6 {[%emt 0:
03:37]} 12. Qc1 {[%emt 0:00:09]} Rb8 {[%emt 0:03:52]} 13. b3 {[%emt 0:00:00]}
f6 {[%emt 0:02:26]} 14. Nc3 {[%emt 0:04:52]} Bf5 {[%emt 0:09:42]} 15. Na4 {
[%emt 0:08:16] [#]} Qb5 $146 {[%emt 0:00:50]} ({Predecessor:} 15... Qa6 16. Qa3
fxe5 17. Nxe5 c5 18. Rac1 Rbc8 19. f3 cxd4 20. Rxc8 Rxc8 21. Bxd4 Nd6 {1-0 (34)
Lobanov,S (2516)-Aravindh,C (2641) Chess.com INT 2020}) 16. Qa3 {[%emt 0:02:42]
} (16. Bh6 $16) 16... g5 {[%emt 0:21:29]} 17. Rac1 {[%emt 0:00:00]} g4 {
[%emt 0:11:05]} 18. exf6 {[%emt 0:00:45]} gxf3 {[%emt 0:00:04]} 19. fxg7 {
[%emt 0:00:12] Really sharp!} Rf7 {[%emt 0:00:20]} 20. g3 $2 {[%emt 0:00:00]} (
20. Bh6 $6 fxg2 21. Nc5 Rc8 $11) (20. Bf4 $16 {and life is bright.}) 20... Qa6
$1 $17 {[%emt 0:07:18]} (20... Kxg7 21. Nc5 $16) 21. Bf4 {[%emt 0:00:00] [#]}
Bg6 {[%emt 0:12:41] Threatens to win with ...Qc8.} 22. Rxe4 {[%emt 0:00:00]}
dxe4 {[%emt 0:04:32]} 23. Bxb8 {[%emt 0:00:18]} (23. Be3 $17) 23... Qc8 {
[%emt 0:00:06]} 24. Kh1 {[%emt 0:01:01] [#]} (24. Bxa7 $2 Qh3 25. Rxc6 Qg2#)
24... Qxb8 {[%emt 0:01:32]} (24... e3 $1 $19 {( -> ...Qh3)} 25. Qb2 (25. Bxa7
Qh3 26. Rg1 exf2 27. Qc1 fxg1=Q+ 28. Qxg1 f2 29. g4 fxg1=Q+ 30. Kxg1 Qf1#)
25... Qxb8) 25. b4 $36 {[%emt 0:05:31] White has the initiative.} (25. Rxc6 e3
26. Qb2 (26. fxe3 $2 f2 27. h3 f1=Q+ 28. Kh2 Rf2#) (26. Qc1 $2 Qb5 $19) 26...
Qb4 $17) 25... Qb5 {[%emt 0:07:18] Strongly threatening ...e3.} 26. Nc5 $1 {
[%emt 0:03:07]} ({Inferior is} 26. Nc3 Qd3 27. Nb1 (27. Qxa7 $2 Qd2 $19) (27.
Rd1 $2 Qc2 $19) 27... e3 28. Qxd3 Bxd3 29. fxe3 f2 $19) 26... Qe2 {[%emt 0:03:
23]} 27. Qe3 {[%emt 0:03:39]} (27. Qxa7 Qxf2 28. Qb8+ Kxg7 29. Ne6+ Kh6 $19) (
27. Kg1 $5 {[%cal Ra3a7]}) 27... Qxa2 {[%emt 0:02:33]} 28. Re1 {[%emt 0:02:03]}
Qc4 {[%emt 0:02:59]} (28... Kxg7 $11 {keeps the balance.} 29. g4 Qd5) 29. Nxe4
$16 {[%emt 0:02:50] White is more active.} Bxe4 {[%emt 0:00:00]} 30. Qxe4 {
[%emt 0:00:01]} Qxb4 {[%emt 0:01:00] Endgame KQR-KQR} 31. Rb1 {[%emt 0:08:37]}
Qd6 {[%emt 0:00:04]} 32. h4 {[%emt 0:01:46]} Qg6 $1 {[%emt 0:01:54]} 33. Qxg6 {
[%emt 0:03:42]} hxg6 $14 {[%emt 0:00:05] KR-KR} 34. Rc1 {[%emt 0:01:54]} Rf6 {
[%emt 0:03:36]} 35. Re1 {[%emt 0:00:24]} e6 {[%emt 0:00:00]} (35... a5 $11 {
remains equal.}) 36. Rc1 {[%emt 0:00:46]} (36. Kh2 $16) 36... Kxg7 {[%emt 0:00:
02]} 37. Rxc6 {[%emt 0:00:05][%cal Yc1c6,Yc6e6,Ye6e4]} e5 {[%emt 0:00:40] The
position is equal.} 38. d5 {[%emt 0:01:01]} e4 {[%emt 0:00:23][%cal Ye4e3]
Hoping for ...e3!} 39. Kg1 {[%emt 0:00:49]} Rf5 {[%emt 0:01:23]} 40. Re6 {
[%emt 0:03:36]} Rxd5 {[%emt 0:00:28]} 41. Rxe4 {[%emt 0:30:10]} Rd1+ {[%emt 0:
30:26] Weighted Error Value: White=0.22 (precise) /Black=0.23 (precise)}
1/2-1/2

[Event "44th Chess Olympiad Women 2022"]
[Site "Chennai"]
[Date "2022.08.03"]
[Round "6.6"]
[White "Klek, Hanna Marie"]
[Black "Belenkaya, Dina"]
[Result "0-1"]
[WhiteElo "2366"]
[BlackElo "2256"]
[Annotator "TA"]
[PlyCount "60"]
[EventDate "2022.??.??"]
[TimeControl "60"]

{[%evp 10,60,0,-2,26,29,54,45,49,45,62,20,55,55,74,78,92,84,85,82,87,76,81,57,
50,68,62,86,109,110,108,113,96,89,89,56,53,15,14,0,0,-473,-450,-512,-469,-847,
-834,-916,-681,-906,-900,-839,-780]} 1. e4 {[%emt 0:00:03]} c6 {[%emt 0:00:02]}
2. d4 {[%emt 0:00:07]} d5 {[%emt 0:00:05]} 3. e5 {[%emt 0:00:05]} Bf5 {[%emt 0:
00:00]} 4. h4 {[%emt 0:00:09]} h5 {[%emt 0:00:20]} 5. c4 {[%emt 0:00:12]} e6 {
[%emt 0:00:57]} 6. Nc3 {[%emt 0:00:09]} Bb4 {[%emt 0:11:40] B12: Caro-Kann:
Advance Variation.} 7. Nge2 {[%emt 0:06:58] is more profitable than 7.Qb3 at
the moment.} dxc4 {[%emt 0:06:13]} 8. Ng3 $1 {[%emt 0:00:57][%csl Yc4,Yh5]} Bg6
{[%emt 0:03:59] White is slightly better.} 9. Bxc4 {[%emt 0:00:33]} Ne7 {
[%emt 0:00:56]} 10. a3 {[%emt 0:07:11] [#]} (10. O-O {is interesting.} c5 11.
Nce4 Qxd4 12. Be3) 10... Ba5 $146 {[%emt 0:02:47][%cal Yc6c5]} ({Predecessor:} 
10... Bxc3+ 11. bxc3 c5 12. Bg5 Nbc6 13. Bxe7 Kxe7 14. Ne2 cxd4 15. cxd4 Qa5+
16. Qd2 Rhd8 17. Qxa5 Nxa5 {0-1 (32) Ratay,M (2032)-Kosteniuk,A (2495) Germany
2020}) 11. O-O {[%emt 0:04:03]} Bb6 {[%emt 0:07:52]} 12. Be3 {[%emt 0:04:19]}
Nf5 {[%emt 0:01:12]} 13. Nxf5 {[%emt 0:02:01]} Bxf5 {[%emt 0:00:08]} 14. g3 {
[%emt 0:00:52]} Nd7 {[%emt 0:05:02]} 15. Be2 {[%emt 0:04:46]} Qe7 {[%emt 0:00:
00]} 16. Bxh5 {[%emt 0:12:43]} O-O-O {[%emt 0:01:11][%cal Yd7e5]} 17. Qe2 {
[%emt 0:02:33]} f6 {[%emt 0:15:40]} 18. Na4 {[%emt 0:06:11]} Bd3 {[%emt 0:00:
00]} 19. Qxd3 {[%emt 0:01:04]} Rxh5 {[%emt 0:00:25]} 20. Qg6 {[%emt 0:07:33]}
Rdh8 {[%emt 0:00:30][%cal Yb6d4]} 21. exf6 {[%emt 0:02:19]} gxf6 {[%emt 0:00:
00][%cal Yg7f6,Yf6f5]} 22. Rac1 {[%emt 0:05:34]} Bc7 {[%emt 0:02:56]} 23. Nc5 {
[%emt 0:01:16]} Nf8 {[%emt 0:08:24]} 24. Qg4 {[%emt 0:03:31] And now Rfe1
would win.} f5 $1 {[%emt 0:03:07]} 25. Bg5 $2 {[%emt 0:00:32] [#]} (25. Qf3 $11
{and White is okay.} f4 26. Bxf4 Bxf4 27. Qxf4) 25... Qh7 $1 $19 {[%emt 0:03:
36] Black is clearly winning.} ({Weaker is} 25... Qxc5 26. Qxh5 Rxh5 27. dxc5
$18) 26. Qf3 {[%emt 0:02:44][%cal Yc5b7] Nxb7! is the strong threat.} Rxg5 $1 {
[%emt 0:00:45]} 27. Nxb7 {[%emt 0:01:19]} (27. Qg2 $142 f4 28. Nxb7 (28. hxg5
$2 {too greedy.} f3 $19)) 27... Qxh4 $1 {[%emt 0:01:57][%csl Gh8][%cal Rh4h2]}
28. Nd6+ {[%emt 0:00:53]} Kb8 {[%emt 0:02:26][%csl Gh8][%cal Rh4h2]} 29. Qg2 {
[%emt 0:01:30] Against Qh2+} Rhg8 {[%emt 0:02:28]} ({And not} 29... Bxd6 30.
gxh4 Rxg2+ 31. Kxg2 $17) 30. Rc3 {[%emt 0:02:56]} Qxd4 {[%emt 0:01:20]
Weighted Error Value: White=0.68/Black=0.15 (very precise)} 0-1